[Event "Late-Titled-Tuesday-Blitz-February-20-2024"]
[Site "Chess.com"]
[Date "2024.02.20"]
[Round "6"]
[White "martinmena"]
[Black "Dinamo3"]
[Result "0-1"]
[WhiteElo "2204"]
[BlackElo "2520"]
[TimeControl "180+1"]
[EndTime "15:06:56 PST"]
[Termination "Dinamo3 won by checkmate"]

1. c4 {[%clk 0:02:59.4]} 1... Nf6 {[%clk 0:02:59.8]} 2. Nc3 {[%clk 0:02:57]}
2... g6 {[%clk 0:03:00.2]} 3. g3 {[%clk 0:02:56.6]} 3... Bg7 {[%clk 0:03:00.2]}
4. Bg2 {[%clk 0:02:56.1]} 4... O-O {[%clk 0:03:00.7]} 5. d3 {[%clk 0:02:56.3]}
5... d6 {[%clk 0:03:00.4]} 6. Bg5 {[%clk 0:02:55.8]} 6... Nc6 {[%clk 0:02:57.7]}
7. Qd2 {[%clk 0:02:55.3]} 7... a5 {[%clk 0:02:53.8]} 8. e4 {[%clk 0:02:54]} 8...
Nd4 {[%clk 0:02:46.8]} 9. Nge2 {[%clk 0:02:51.8]} 9... c5 {[%clk 0:02:39.2]} 10.
h3 {[%clk 0:02:51.6]} 10... Ne8 {[%clk 0:02:36.6]} 11. O-O {[%clk 0:02:50.2]}
11... Nc7 {[%clk 0:02:36.2]} 12. Nxd4 {[%clk 0:02:48.2]} 12... cxd4 {[%clk
0:02:34.2]} 13. Nd5 {[%clk 0:02:45.3]} 13... Nxd5 {[%clk 0:02:10.8]} 14. exd5
{[%clk 0:02:44.2]} 14... Re8 {[%clk 0:02:11.3]} 15. Rfe1 {[%clk 0:02:38.1]}
15... Bd7 {[%clk 0:02:10.9]} 16. a4 {[%clk 0:02:27.5]} 16... f6 {[%clk
0:02:05.9]} 17. Bh6 {[%clk 0:02:23.8]} 17... Qb6 {[%clk 0:02:02.2]} 18. Bxg7
{[%clk 0:02:22.4]} 18... Kxg7 {[%clk 0:02:02.4]} 19. Qc2 {[%clk 0:02:16.4]}
19... Qb4 {[%clk 0:01:54]} 20. b3 {[%clk 0:02:15.8]} 20... Ra6 {[%clk
0:01:48.9]} 21. f4 {[%clk 0:02:06.6]} 21... Rb6 {[%clk 0:01:48.8]} 22. Rab1
{[%clk 0:02:04.3]} 22... Kf7 {[%clk 0:01:47.8]} 23. Kf2 {[%clk 0:01:46]} 23...
Qc5 {[%clk 0:01:47.9]} 24. Re2 {[%clk 0:01:41.8]} 24... Rb4 {[%clk 0:01:48.4]}
25. Qd1 {[%clk 0:01:32.9]} 25... Qb6 {[%clk 0:01:48.2]} 26. Re1 {[%clk
0:01:21.4]} 26... h5 {[%clk 0:01:41.6]} 27. Rh1 {[%clk 0:00:59.3]} 27... Rh8
{[%clk 0:01:33.5]} 28. h4 {[%clk 0:00:50]} 28... Bg4 {[%clk 0:01:31.2]} 29. Bf3
{[%clk 0:00:41.6]} 29... Bf5 {[%clk 0:01:31.5]} 30. Re1 {[%clk 0:00:29.3]} 30...
Qc7 {[%clk 0:01:24.4]} 31. Qe2 {[%clk 0:00:21.8]} 31... Qd7 {[%clk 0:01:24.5]}
32. Be4 {[%clk 0:00:20.9]} 32... Bg4 {[%clk 0:01:23.3]} 33. Bf3 {[%clk
0:00:20.7]} 33... Bf5 {[%clk 0:01:13.5]} 34. Kg2 {[%clk 0:00:17.7]} 34... Re8
{[%clk 0:01:10.6]} 35. Be4 {[%clk 0:00:13.5]} 35... Bg4 {[%clk 0:01:09.9]} 36.
Qd2 {[%clk 0:00:10.8]} 36... Kg7 {[%clk 0:01:02.4]} 37. Qf2 {[%clk 0:00:10.7]}
37... Bh3+ {[%clk 0:00:58.8]} 38. Kh2 {[%clk 0:00:10.5]} 38... Rb8 {[%clk
0:00:41.1]} 39. Qxd4 {[%clk 0:00:10.5]} 39... b5 {[%clk 0:00:41.4]} 40. Qe3
{[%clk 0:00:05.8]} 40... bxa4 {[%clk 0:00:40.5]} 41. Bg2 {[%clk 0:00:02.8]}
41... Bxg2 {[%clk 0:00:40.6]} 42. Kxg2 {[%clk 0:00:01.9]} 42... R8b7 {[%clk
0:00:39.9]} 43. Qe6 {[%clk 0:00:01.9]} 43... Qxe6 {[%clk 0:00:39.3]} 44. dxe6
{[%clk 0:00:02]} 44... axb3 {[%clk 0:00:39.8]} 45. Re2 {[%clk 0:00:01.7]} 45...
b2 {[%clk 0:00:39.7]} 46. Rexb2 {[%clk 0:00:02.4]} 46... Rxb2+ {[%clk
0:00:39.6]} 47. Rxb2 {[%clk 0:00:02.8]} 47... Rxb2+ {[%clk 0:00:40.5]} 48. Kf3
{[%clk 0:00:03.4]} 48... a4 {[%clk 0:00:41]} 49. d4 {[%clk 0:00:04.2]} 49... a3
{[%clk 0:00:41.2]} 50. c5 {[%clk 0:00:05.1]} 50... dxc5 {[%clk 0:00:41.2]} 51.
dxc5 {[%clk 0:00:05.2]} 51... a2 {[%clk 0:00:41.5]} 52. c6 {[%clk 0:00:06.1]}
52... a1=Q {[%clk 0:00:41.7]} 53. c7 {[%clk 0:00:07]} 53... Qf1+ {[%clk
0:00:41.3]} 54. Ke4 {[%clk 0:00:05.5]} 54... Qe2+ {[%clk 0:00:41.5]} 55. Kd5
{[%clk 0:00:06.1]} 55... Rd2+ {[%clk 0:00:41.2]} 56. Kc6 {[%clk 0:00:06.5]}
56... Qc4+ {[%clk 0:00:41.2]} 57. Kb7 {[%clk 0:00:06.5]} 57... Rb2+ {[%clk
0:00:40.8]} 58. Kc8 {[%clk 0:00:06.4]} 58... Rc2 {[%clk 0:00:37.7]} 59. Kd8
{[%clk 0:00:04.6]} 59... Qxc7+ {[%clk 0:00:37.7]} 60. Ke8 {[%clk 0:00:04.9]}
60... Qd6 {[%clk 0:00:27.4]} 61. f5 {[%clk 0:00:01.4]} 61... Rc8# {[%clk
0:00:28.3]} 0-1

[Event "Late-Titled-Tuesday-Blitz-February-20-2024"]
[Site "Chess.com"]
[Date "2024.02.20"]
[Round "6"]
[White "K_A_S_T_O_R"]
[Black "The_Straightforward_Rook"]
[Result "0-1"]
[WhiteElo "2779"]
[BlackElo "2489"]
[TimeControl "180+1"]
[EndTime "15:07:00 PST"]
[Termination "The_Straightforward_Rook won by resignation"]

1. e4 {[%clk 0:02:57.1]} 1... c6 {[%clk 0:03:00]} 2. d4 {[%clk 0:02:56.6]} 2...
d5 {[%clk 0:03:00.9]} 3. exd5 {[%clk 0:02:57.1]} 3... cxd5 {[%clk 0:03:01.8]} 4.
c4 {[%clk 0:02:57.7]} 4... Nf6 {[%clk 0:03:01.4]} 5. Nc3 {[%clk 0:02:56.8]} 5...
Nc6 {[%clk 0:02:59.3]} 6. Bg5 {[%clk 0:02:55.6]} 6... Be6 {[%clk 0:02:57]} 7. a3
{[%clk 0:02:54.2]} 7... g6 {[%clk 0:02:49.6]} 8. Be2 {[%clk 0:02:51.2]} 8... Bg7
{[%clk 0:02:14.6]} 9. Bf3 {[%clk 0:02:50.4]} 9... dxc4 {[%clk 0:02:04.9]} 10.
Bxf6 {[%clk 0:02:36.6]} 10... Bxf6 {[%clk 0:01:56.4]} 11. d5 {[%clk 0:02:34.4]}
11... Qb6 {[%clk 0:01:52.4]} 12. Rb1 {[%clk 0:01:21.2]} 12... Ne5 {[%clk
0:01:47.1]} 13. Be4 {[%clk 0:01:19]} 13... Rd8 {[%clk 0:01:43.5]} 14. Nf3 {[%clk
0:01:17]} 14... Nxf3+ {[%clk 0:01:41]} 15. Qxf3 {[%clk 0:01:12.7]} 15... Bc8
{[%clk 0:01:14.5]} 16. O-O {[%clk 0:01:12.8]} 16... O-O {[%clk 0:01:14.1]} 17.
Rfe1 {[%clk 0:01:11.5]} 17... a6 {[%clk 0:01:08.7]} 18. Re2 {[%clk 0:01:07.8]}
18... Qc7 {[%clk 0:01:04.9]} 19. Rd1 {[%clk 0:01:06.4]} 19... b5 {[%clk
0:01:03.9]} 20. Red2 {[%clk 0:01:05.9]} 20... Qb6 {[%clk 0:00:51]} 21. d6 {[%clk
0:01:04.5]} 21... Bxc3 {[%clk 0:00:48.5]} 22. dxe7 {[%clk 0:00:52]} 22... Bxd2
{[%clk 0:00:47.2]} 23. exf8=Q+ {[%clk 0:00:48.5]} 23... Kxf8 {[%clk 0:00:46.5]}
24. Bd5 {[%clk 0:00:48.1]} 24... Be6 {[%clk 0:00:24.6]} 25. Rxd2 {[%clk
0:00:45.7]} 25... Bxd5 {[%clk 0:00:13.4]} 26. Rxd5 {[%clk 0:00:45.5]} 26... Rxd5
{[%clk 0:00:14.3]} 27. Qxd5 {[%clk 0:00:45.9]} 27... Qe6 {[%clk 0:00:15.2]} 28.
Qd2 {[%clk 0:00:43.7]} 28... Qe5 {[%clk 0:00:15.5]} 29. h3 {[%clk 0:00:44]}
29... Kg7 {[%clk 0:00:16]} 30. g3 {[%clk 0:00:43.8]} 30... a5 {[%clk 0:00:15.8]}
31. Kh2 {[%clk 0:00:41.6]} 31... Qc5 {[%clk 0:00:14.4]} 32. Kg1 {[%clk
0:00:39.8]} 32... b4 {[%clk 0:00:14]} 33. axb4 {[%clk 0:00:40.3]} 33... axb4
{[%clk 0:00:14.9]} 34. Qc2 {[%clk 0:00:39.3]} 34... c3 {[%clk 0:00:15]} 35. bxc3
{[%clk 0:00:39.7]} 35... bxc3 {[%clk 0:00:15.9]} 36. Kf1 {[%clk 0:00:38.4]}
36... Qd4 {[%clk 0:00:16.5]} 37. Ke2 {[%clk 0:00:38.4]} 37... f5 {[%clk
0:00:16.7]} 38. Qd3 {[%clk 0:00:38.1]} 38... Qe5+ {[%clk 0:00:15]} 39. Qe3
{[%clk 0:00:38.1]} 39... Kf6 {[%clk 0:00:13.4]} 40. Qxe5+ {[%clk 0:00:30.4]}
40... Kxe5 {[%clk 0:00:14.3]} 41. Kd3 {[%clk 0:00:31]} 41... f4 {[%clk
0:00:13.9]} 42. g4 {[%clk 0:00:31.1]} 42... h5 {[%clk 0:00:12.5]} 43. gxh5
{[%clk 0:00:29.8]} 43... gxh5 {[%clk 0:00:12.5]} 44. f3 {[%clk 0:00:30.3]} 44...
c2 {[%clk 0:00:11.5]} 45. Kxc2 {[%clk 0:00:29.8]} 45... Kd4 {[%clk 0:00:12.4]}
46. Kd2 {[%clk 0:00:28.7]} 46... Kc4 {[%clk 0:00:11.4]} 47. Kc2 {[%clk
0:00:25.9]} 47... Kd4 {[%clk 0:00:11.5]} 48. Kd2 {[%clk 0:00:25.1]} 48... h4
{[%clk 0:00:11.3]} 49. Ke2 {[%clk 0:00:24.3]} 49... Kc3 {[%clk 0:00:11.2]} 50.
Ke1 {[%clk 0:00:22.7]} 50... Kd3 {[%clk 0:00:11]} 51. Kf2 {[%clk 0:00:23.2]}
51... Kd2 {[%clk 0:00:11.3]} 52. Kf1 {[%clk 0:00:23.4]} 52... Ke3 {[%clk
0:00:11]} 53. Kg2 {[%clk 0:00:23.8]} 53... Ke2 {[%clk 0:00:11.7]} 54. Kg1 {[%clk
0:00:22]} 54... Kxf3 {[%clk 0:00:12]} 55. Kh2 {[%clk 0:00:22.9]} 55... Ke3
{[%clk 0:00:11.3]} 56. Kg2 {[%clk 0:00:23.1]} 56... Ke2 {[%clk 0:00:09.9]} 57.
Kg1 {[%clk 0:00:23.3]} 57... f3 {[%clk 0:00:10.2]} 58. Kh1 {[%clk 0:00:23.3]}
58... f2 {[%clk 0:00:10.3]} 59. Kh2 {[%clk 0:00:23.7]} 59... Kf3 {[%clk
0:00:06.4]} 0-1

[Event "Late-Titled-Tuesday-Blitz-February-20-2024"]
[Site "Chess.com"]
[Date "2024.02.20"]
[Round "6"]
[White "NoHeThTo"]
[Black "sergiochess83"]
[Result "0-1"]
[WhiteElo "2625"]
[BlackElo "2916"]
[TimeControl "180+1"]
[EndTime "15:07:01 PST"]
[Termination "sergiochess83 won by resignation"]

1. c4 {[%clk 0:02:53.3]} 1... e5 {[%clk 0:02:57.4]} 2. Nc3 {[%clk 0:02:50.8]}
2... Nf6 {[%clk 0:02:56.6]} 3. g3 {[%clk 0:02:47.5]} 3... c6 {[%clk 0:02:55.8]}
4. Nf3 {[%clk 0:02:32.2]} 4... e4 {[%clk 0:02:54.2]} 5. Nd4 {[%clk 0:02:31.3]}
5... Qb6 {[%clk 0:02:54.9]} 6. Nc2 {[%clk 0:02:27.9]} 6... d5 {[%clk 0:02:48.4]}
7. cxd5 {[%clk 0:02:26.8]} 7... cxd5 {[%clk 0:02:49.3]} 8. Bg2 {[%clk
0:02:21.1]} 8... Bc5 {[%clk 0:02:23.6]} 9. O-O {[%clk 0:02:14.4]} 9... O-O
{[%clk 0:02:23.1]} 10. d3 {[%clk 0:02:12.4]} 10... Re8 {[%clk 0:02:05.8]} 11.
Bg5 {[%clk 0:02:10]} 11... Ng4 {[%clk 0:01:59.4]} 12. d4 {[%clk 0:02:09.1]}
12... Bf8 {[%clk 0:01:44]} 13. Nxd5 {[%clk 0:02:06.6]} 13... Qg6 {[%clk
0:01:43.7]} 14. h4 {[%clk 0:01:57.1]} 14... Bd6 {[%clk 0:01:37.7]} 15. Nce3
{[%clk 0:01:51.9]} 15... Nc6 {[%clk 0:01:32.1]} 16. Nxg4 {[%clk 0:01:48.8]}
16... Bxg4 {[%clk 0:01:31.6]} 17. Bf4 {[%clk 0:01:13.8]} 17... Rad8 {[%clk
0:01:25.7]} 18. Bxd6 {[%clk 0:01:12.6]} 18... Rxd6 {[%clk 0:01:10.6]} 19. Nf4
{[%clk 0:01:11.5]} 19... Qf6 {[%clk 0:01:08]} 20. d5 {[%clk 0:01:03.7]} 20...
Nd4 {[%clk 0:01:08.2]} 21. f3 {[%clk 0:01:01.8]} 21... exf3 {[%clk 0:01:06.7]}
22. exf3 {[%clk 0:01:02.2]} 22... Bf5 {[%clk 0:00:55]} 23. Re1 {[%clk
0:00:58.5]} 23... Rxe1+ {[%clk 0:00:36.2]} 24. Qxe1 {[%clk 0:00:59.4]} 24... Rd8
{[%clk 0:00:36.5]} 25. Rc1 {[%clk 0:00:58]} 25... h6 {[%clk 0:00:34.9]} 26. Qf2
{[%clk 0:00:50.1]} 26... Re8 {[%clk 0:00:27.1]} 27. Re1 {[%clk 0:00:46.4]} 27...
Rc8 {[%clk 0:00:17.9]} 28. Rd1 {[%clk 0:00:33.5]} 28... Nb5 {[%clk 0:00:11.6]}
29. a4 {[%clk 0:00:25.3]} 29... Nd6 {[%clk 0:00:11.5]} 30. Qxa7 {[%clk
0:00:22.1]} 30... Qxb2 {[%clk 0:00:11.3]} 31. Qd4 {[%clk 0:00:20.1]} 31... Qxd4+
{[%clk 0:00:04.7]} 32. Rxd4 {[%clk 0:00:20.1]} 32... g5 {[%clk 0:00:05.4]} 33.
hxg5 {[%clk 0:00:19.9]} 33... hxg5 {[%clk 0:00:06.3]} 34. Ne2 {[%clk 0:00:19.5]}
34... Rc2 {[%clk 0:00:05.7]} 35. Kf2 {[%clk 0:00:19.2]} 35... Bd7 {[%clk
0:00:05.3]} 36. g4 {[%clk 0:00:16.8]} 36... Kf8 {[%clk 0:00:05.7]} 37. Ke3
{[%clk 0:00:16.8]} 37... Ke7 {[%clk 0:00:06]} 38. f4 {[%clk 0:00:17.2]} 38...
gxf4+ {[%clk 0:00:05.6]} 39. Rxf4 {[%clk 0:00:16.7]} 39... Ra2 {[%clk
0:00:06.5]} 40. Nc3 {[%clk 0:00:16.6]} 40... Rxg2 {[%clk 0:00:06.3]} 41. Rb4
{[%clk 0:00:15.7]} 41... Rxg4 {[%clk 0:00:06.1]} 42. Rxg4 {[%clk 0:00:15.2]}
42... Bxg4 {[%clk 0:00:05.8]} 43. Kf4 {[%clk 0:00:16.1]} 43... Bd7 {[%clk
0:00:05.7]} 44. Ke5 {[%clk 0:00:16.7]} 44... f6+ {[%clk 0:00:06]} 45. Kd4 {[%clk
0:00:17.2]} 45... b6 {[%clk 0:00:06.7]} 46. Ke3 {[%clk 0:00:16.3]} 46... Kd8
{[%clk 0:00:06.4]} 47. Kd4 {[%clk 0:00:16.6]} 47... Kc7 {[%clk 0:00:07]} 48. Ke3
{[%clk 0:00:16.9]} 48... Kb7 {[%clk 0:00:07.6]} 49. Kd4 {[%clk 0:00:17.4]} 49...
Ka6 {[%clk 0:00:08.2]} 50. Nd1 {[%clk 0:00:14.6]} 50... Bxa4 {[%clk 0:00:07.7]}
51. Ne3 {[%clk 0:00:15.1]} 51... Bd7 {[%clk 0:00:07.9]} 52. Nc2 {[%clk
0:00:15.5]} 52... Kb7 {[%clk 0:00:07.7]} 53. Nb4 {[%clk 0:00:15.9]} 53... Kc7
{[%clk 0:00:08.2]} 54. Nc2 {[%clk 0:00:15.7]} 54... Nb5+ {[%clk 0:00:08.2]} 55.
Ke4 {[%clk 0:00:15]} 55... Nd6+ {[%clk 0:00:09.1]} 56. Kd4 {[%clk 0:00:15.2]}
56... Kd8 {[%clk 0:00:10]} 57. Nb4 {[%clk 0:00:15]} 57... Ke7 {[%clk 0:00:09.9]}
58. Nd3 {[%clk 0:00:15.5]} 58... Bf5 {[%clk 0:00:09.4]} 59. Nf4 {[%clk
0:00:15.9]} 59... Bg4 {[%clk 0:00:08.7]} 60. Nd3 {[%clk 0:00:16]} 60... Kd7
{[%clk 0:00:08.8]} 61. Nf4 {[%clk 0:00:16.4]} 61... Bf3 {[%clk 0:00:08.5]} 62.
Nd3 {[%clk 0:00:16.3]} 62... Nf5+ {[%clk 0:00:08.8]} 63. Kc4 {[%clk 0:00:15.9]}
63... Be2 {[%clk 0:00:09.1]} 0-1

[Event "Late-Titled-Tuesday-Blitz-February-20-2024"]
[Site "Chess.com"]
[Date "2024.02.20"]
[Round "6"]
[White "Taran2004"]
[Black "SnekkerAndersen"]
[Result "0-1"]
[WhiteElo "2436"]
[BlackElo "2633"]
[TimeControl "180+1"]
[EndTime "15:07:10 PST"]
[Termination "SnekkerAndersen won by checkmate"]

1. e4 {[%clk 0:03:00.9]} 1... e6 {[%clk 0:02:57]} 2. d4 {[%clk 0:03:00.6]} 2...
d5 {[%clk 0:02:57]} 3. Nd2 {[%clk 0:03:00.8]} 3... Nf6 {[%clk 0:02:54.8]} 4. e5
{[%clk 0:03:00.5]} 4... Nfd7 {[%clk 0:02:54.8]} 5. Bd3 {[%clk 0:02:59.9]} 5...
c5 {[%clk 0:02:54.1]} 6. c3 {[%clk 0:03:00.2]} 6... Nc6 {[%clk 0:02:53.1]} 7.
Ne2 {[%clk 0:03:00.2]} 7... cxd4 {[%clk 0:02:52.4]} 8. cxd4 {[%clk 0:03:01.1]}
8... f6 {[%clk 0:02:52.6]} 9. exf6 {[%clk 0:03:00.8]} 9... Nxf6 {[%clk
0:02:52.5]} 10. Nf3 {[%clk 0:03:01]} 10... Bd6 {[%clk 0:02:52.9]} 11. O-O {[%clk
0:03:00.1]} 11... O-O {[%clk 0:02:53.3]} 12. Bf4 {[%clk 0:02:51.8]} 12... Bxf4
{[%clk 0:02:53.5]} 13. Nxf4 {[%clk 0:02:52.7]} 13... Ne4 {[%clk 0:02:53.7]} 14.
Nh5 {[%clk 0:02:46.4]} 14... g6 {[%clk 0:02:38.2]} 15. Ng3 {[%clk 0:02:46]}
15... Ng5 {[%clk 0:02:38.3]} 16. Nxg5 {[%clk 0:02:35.3]} 16... Qxg5 {[%clk
0:02:38.2]} 17. Bb5 {[%clk 0:02:35.1]} 17... Bd7 {[%clk 0:02:24.1]} 18. Bxc6
{[%clk 0:02:13.2]} 18... bxc6 {[%clk 0:02:20.7]} 19. Qc1 {[%clk 0:02:13.2]}
19... Qf6 {[%clk 0:02:16.7]} 20. Qe3 {[%clk 0:02:12]} 20... Rab8 {[%clk
0:02:11.5]} 21. b3 {[%clk 0:02:11.8]} 21... Rb4 {[%clk 0:02:11.5]} 22. Rad1
{[%clk 0:02:12]} 22... a5 {[%clk 0:02:12.1]} 23. a3 {[%clk 0:02:01.3]} 23... Rb6
{[%clk 0:02:09.7]} 24. Qc3 {[%clk 0:01:59.1]} 24... Rfb8 {[%clk 0:02:07.4]} 25.
Qxa5 {[%clk 0:01:56.7]} 25... Rxb3 {[%clk 0:02:07.3]} 26. Qc7 {[%clk 0:01:56.9]}
26... R3b7 {[%clk 0:01:56.8]} 27. Qd6 {[%clk 0:01:55.2]} 27... Qf8 {[%clk
0:01:53.7]} 28. Qxf8+ {[%clk 0:01:45.9]} 28... Kxf8 {[%clk 0:01:54.6]} 29. Ne2
{[%clk 0:01:30.7]} 29... Ra7 {[%clk 0:01:53.7]} 30. Nf4 {[%clk 0:01:29.5]} 30...
Rxa3 {[%clk 0:01:51]} 31. Nd3 {[%clk 0:01:29.7]} 31... Ra2 {[%clk 0:01:46.1]}
32. Nc5 {[%clk 0:01:19.7]} 32... Bc8 {[%clk 0:01:45.4]} 33. Rb1 {[%clk 0:01:15]}
33... Rbb2 {[%clk 0:01:42.5]} 34. Rxb2 {[%clk 0:01:12.5]} 34... Rxb2 {[%clk
0:01:43.4]} 35. f4 {[%clk 0:01:12.4]} 35... Rd2 {[%clk 0:01:40.3]} 36. Ra1
{[%clk 0:01:12.1]} 36... Ke7 {[%clk 0:01:06.2]} 37. Ra8 {[%clk 0:01:08]} 37...
Kd8 {[%clk 0:01:05.7]} 38. Nxe6+ {[%clk 0:01:06]} 38... Kd7 {[%clk 0:01:06.1]}
39. Nc5+ {[%clk 0:01:05.1]} 39... Kc7 {[%clk 0:01:05.3]} 40. Ra4 {[%clk
0:01:00.9]} 40... Bf5 {[%clk 0:01:02.8]} 41. g3 {[%clk 0:00:58.9]} 41... Be4
{[%clk 0:01:00.3]} 42. Ra7+ {[%clk 0:00:57.6]} 42... Kc8 {[%clk 0:00:55.5]} 43.
Ra4 {[%clk 0:00:48.2]} 43... Kc7 {[%clk 0:00:55.4]} 44. h4 {[%clk 0:00:44.9]}
44... Rg2+ {[%clk 0:00:54.8]} 45. Kf1 {[%clk 0:00:44.3]} 45... Rxg3 {[%clk
0:00:54.3]} 46. Ra7+ {[%clk 0:00:45]} 46... Kc8 {[%clk 0:00:54.3]} 47. Rxh7
{[%clk 0:00:44.7]} 47... Rg4 {[%clk 0:00:54.8]} 48. Ke2 {[%clk 0:00:43.3]} 48...
Bf5 {[%clk 0:00:48.8]} 49. Ke3 {[%clk 0:00:27.7]} 49... Rg3+ {[%clk 0:00:47.7]}
50. Ke2 {[%clk 0:00:27.7]} 50... Rh3 {[%clk 0:00:48.1]} 51. Rh8+ {[%clk
0:00:25.5]} 51... Kc7 {[%clk 0:00:47.9]} 52. Rh7+ {[%clk 0:00:26.1]} 52... Kb6
{[%clk 0:00:48.1]} 53. Rb7+ {[%clk 0:00:25.9]} 53... Ka5 {[%clk 0:00:48.3]} 54.
Rc7 {[%clk 0:00:24.8]} 54... Kb5 {[%clk 0:00:48.6]} 55. Rb7+ {[%clk 0:00:24.9]}
55... Kc4 {[%clk 0:00:48.8]} 56. Rc7 {[%clk 0:00:24]} 56... Kxd4 {[%clk
0:00:45.7]} 57. Rxc6 {[%clk 0:00:24.1]} 57... Rxh4 {[%clk 0:00:43.4]} 58. Ne6+
{[%clk 0:00:24.3]} 58... Ke4 {[%clk 0:00:33.4]} 59. Nf8 {[%clk 0:00:22.4]} 59...
Rh2+ {[%clk 0:00:30.8]} 60. Ke1 {[%clk 0:00:20.2]} 60... Ke3 {[%clk 0:00:29.5]}
61. Kf1 {[%clk 0:00:18.6]} 61... Kf3 {[%clk 0:00:26.1]} 62. Ke1 {[%clk 0:00:18]}
62... Rg2 {[%clk 0:00:25.3]} 63. Rd6 {[%clk 0:00:17.2]} 63... Be4 {[%clk
0:00:18.7]} 64. Ne6 {[%clk 0:00:17.4]} 64... Ke3 {[%clk 0:00:17.5]} 65. Kf1
{[%clk 0:00:12.4]} 65... Rg4 {[%clk 0:00:17.8]} 66. Ra6 {[%clk 0:00:10.2]} 66...
d4 {[%clk 0:00:17.4]} 67. Ra3+ {[%clk 0:00:09.1]} 67... d3 {[%clk 0:00:17.9]}
68. Nc5 {[%clk 0:00:10]} 68... Bf5 {[%clk 0:00:18.1]} 69. Ke1 {[%clk 0:00:07.8]}
69... Rg1# {[%clk 0:00:18]} 0-1

[Event "Late-Titled-Tuesday-Blitz-February-20-2024"]
[Site "Chess.com"]
[Date "2024.02.20"]
[Round "6"]
[White "Perecke"]
[Black "ckgchess"]
[Result "0-1"]
[WhiteElo "2506"]
[BlackElo "2887"]
[TimeControl "180+1"]
[EndTime "15:07:17 PST"]
[Termination "ckgchess won on time"]

1. e4 {[%clk 0:03:00.9]} 1... e5 {[%clk 0:02:54.8]} 2. Nf3 {[%clk 0:03:00.9]}
2... Nf6 {[%clk 0:02:55.2]} 3. d4 {[%clk 0:02:57.9]} 3... Nxe4 {[%clk 0:02:54]}
4. dxe5 {[%clk 0:02:57.9]} 4... d5 {[%clk 0:02:51]} 5. c4 {[%clk 0:02:48.1]}
5... Bb4+ {[%clk 0:02:48.6]} 6. Nbd2 {[%clk 0:02:46]} 6... O-O {[%clk
0:02:46.9]} 7. Bd3 {[%clk 0:02:43.8]} 7... Bf5 {[%clk 0:02:45.5]} 8. Qc2 {[%clk
0:02:32.5]} 8... Nc6 {[%clk 0:02:32]} 9. O-O {[%clk 0:02:07.2]} 9... Bxd2 {[%clk
0:02:24.6]} 10. Bxd2 {[%clk 0:02:06.2]} 10... Nxd2 {[%clk 0:02:24.8]} 11. Qxd2
{[%clk 0:02:03.7]} 11... Bg4 {[%clk 0:02:11.7]} 12. cxd5 {[%clk 0:02:01.3]}
12... Bxf3 {[%clk 0:02:07]} 13. dxc6 {[%clk 0:02:00]} 13... Bxc6 {[%clk
0:02:07.9]} 14. Qc2 {[%clk 0:01:56.9]} 14... Qh4 {[%clk 0:02:06.7]} 15. g3
{[%clk 0:01:50.9]} 15... Qh5 {[%clk 0:01:37.2]} 16. Be4 {[%clk 0:01:50.7]} 16...
Qxe5 {[%clk 0:01:28.8]} 17. Bxc6 {[%clk 0:01:50.1]} 17... bxc6 {[%clk
0:01:29.7]} 18. Qxc6 {[%clk 0:01:44.7]} 18... Qxb2 {[%clk 0:01:29.1]} 19. Qxc7
{[%clk 0:01:40]} 19... Rfc8 {[%clk 0:01:29.1]} 20. Qd7 {[%clk 0:01:36.4]} 20...
Rd8 {[%clk 0:01:21.9]} 21. Qa4 {[%clk 0:01:27.8]} 21... Rd4 {[%clk 0:01:16.9]}
22. Rab1 {[%clk 0:01:05]} 22... Qxf2+ {[%clk 0:00:52.3]} 23. Rxf2 {[%clk
0:01:05.9]} 23... Rxa4 {[%clk 0:00:53.1]} 24. Rb7 {[%clk 0:01:04.3]} 24... Rf8
{[%clk 0:00:53.2]} 25. Rc2 {[%clk 0:01:03.2]} 25... g6 {[%clk 0:00:50.6]} 26.
Rcc7 {[%clk 0:01:01.2]} 26... a5 {[%clk 0:00:50.9]} 27. Rc2 {[%clk 0:00:56.4]}
27... h5 {[%clk 0:00:51.1]} 28. Ra7 {[%clk 0:00:55.9]} 28... Rd8 {[%clk
0:00:44.2]} 29. Kg2 {[%clk 0:00:52.2]} 29... Rd5 {[%clk 0:00:40.2]} 30. Kh3
{[%clk 0:00:37.2]} 30... Rf5 {[%clk 0:00:38.9]} 31. Rd2 {[%clk 0:00:35.6]} 31...
Kg7 {[%clk 0:00:38.7]} 32. Rc7 {[%clk 0:00:33.1]} 32... h4 {[%clk 0:00:24.6]}
33. Rc3 {[%clk 0:00:16.5]} 33... hxg3 {[%clk 0:00:24.6]} 34. hxg3 {[%clk
0:00:16.9]} 34... Rf1 {[%clk 0:00:20.1]} 35. a3 {[%clk 0:00:10.8]} 35... Rf5
{[%clk 0:00:18.8]} 36. Rdd3 {[%clk 0:00:10.7]} 36... Re4 {[%clk 0:00:16.1]} 37.
Rf3 {[%clk 0:00:09.7]} 37... Rh5+ {[%clk 0:00:14.7]} 38. Kg2 {[%clk 0:00:10]}
38... Re2+ {[%clk 0:00:15]} 39. Rf2 {[%clk 0:00:10.6]} 39... Re4 {[%clk
0:00:14.1]} 40. Rc7 {[%clk 0:00:09.1]} 40... Rf5 {[%clk 0:00:10.1]} 41. Rxf5
{[%clk 0:00:09.5]} 41... gxf5 {[%clk 0:00:11]} 42. Rc5 {[%clk 0:00:10.1]} 42...
Ra4 {[%clk 0:00:10.9]} 43. Rc3 {[%clk 0:00:08.4]} 43... Kf6 {[%clk 0:00:11.2]}
44. Kf3 {[%clk 0:00:08.8]} 44... Kg5 {[%clk 0:00:11.9]} 45. Rb3 {[%clk
0:00:08.2]} 45... Rc4 {[%clk 0:00:11.6]} 46. Rb5 {[%clk 0:00:07]} 46... Rc3+
{[%clk 0:00:11.7]} 47. Kf2 {[%clk 0:00:07.4]} 47... Rxa3 {[%clk 0:00:12.6]} 48.
Rc5 {[%clk 0:00:07.2]} 48... a4 {[%clk 0:00:12.8]} 49. Rb5 {[%clk 0:00:06.6]}
49... Rb3 {[%clk 0:00:09]} 50. Ra5 {[%clk 0:00:07.1]} 50... a3 {[%clk
0:00:08.7]} 51. Ra4 {[%clk 0:00:06.7]} 51... Rb2+ {[%clk 0:00:07.7]} 52. Kf3
{[%clk 0:00:06.8]} 52... a2 {[%clk 0:00:08.6]} 53. Ra5 {[%clk 0:00:06.9]} 53...
Kf6 {[%clk 0:00:07.9]} 54. Kf4 {[%clk 0:00:06.2]} 54... Ke6 {[%clk 0:00:08.4]}
55. Ra6+ {[%clk 0:00:06.3]} 55... Kd5 {[%clk 0:00:08]} 56. Kxf5 {[%clk
0:00:06.9]} 56... Kc4 {[%clk 0:00:08.2]} 57. Kf6 {[%clk 0:00:06.6]} 57... Rf2+
{[%clk 0:00:08.4]} 58. Ke7 {[%clk 0:00:06.2]} 58... Kb3 {[%clk 0:00:09]} 59. g4
{[%clk 0:00:03.7]} 59... Kb2 {[%clk 0:00:08.2]} 60. Rb6+ {[%clk 0:00:02.3]}
60... Kc1 {[%clk 0:00:08.2]} 61. Rc6+ {[%clk 0:00:01.4]} 61... Rc2 {[%clk
0:00:05.2]} 0-1